fUST/lending_fUST_20240820
["ID","MTS","AMOUNT","RATE_DAILY","PERIOD"]
[335366239,1724161861181,-674.76,0.00020273,2]
[335366240,1724161861192,-500.0,0.00020273,2]
[335366241,1724161861202,-1595.9,0.00020273,2]
[335366242,1724161861212,-500.0,0.00020273,2]
[335366243,1724161861223,-984.07,0.00020273,2]
[335366244,1724161861234,-1040.91,0.00020273,2]
[335366245,1724161861243,-500.0,0.00020273,2]
[335366246,1724161861254,-500.0,0.00020273,2]
[335366247,1724161861265,-570.39,0.00020273,2]
[335366248,1724161861275,-500.0,0.00020273,2]
[335366249,1724161861284,-2745.62,0.00020273,2]
[335366250,1724161861294,-500.0,0.00020273,2]
[335366251,1724161861303,-151.0,0.00020273,2]
[335366252,1724161861312,-629.08,0.00020273,2]
[335366253,1724161861323,-500.0,0.00020273,2]
[335366254,1724161861332,-162.435199,0.00020273,2]
[335366255,1724161861342,-629.97,0.00020273,2]
[335366256,1724161861355,-162.435199,0.00020273,2]
[335366257,1724161861364,-151.0,0.00020273,2]
[335366258,1724161861373,-4747.67,0.00020273,2]
[335366259,1724161861383,-500.0,0.00020274,2]
[335366260,1724161861392,-2000.0,0.00020278,2]
[335366261,1724161861402,-1400.0,0.00020279,2]
[335366262,1724161861412,-503.32049717,0.00020323,2]
[335366263,1724161861425,-500.0,0.00020336,2]
[335366264,1724161861435,-800.0,0.00020398,2]
[335366265,1724161861446,-800.0,0.00020404,2]
[335366266,1724161861456,-5117.28593988,0.0002042,2]
[335366267,1724161861467,-465.02890379,0.00020421,2]
[335366268,1724161861478,-2000.0,0.00020424,2]
[335366269,1724161861487,-2000.0,0.0002043,2]
[335366270,1724161861500,-800.0,0.00020438,2]
[335366271,1724161861511,-151.0,0.00020463,2]
[335366272,1724161861523,-151.0,0.00020463,2]
[335366273,1724161861534,-151.0,0.00020463,2]
[335366274,1724161861546,-7199.964,0.00020463,2]
[335366275,1724161861557,-151.0,0.00020463,2]
[335366276,1724161861568,-7199.964,0.00020463,2]
[335366277,1724161861578,-151.0,0.00020463,2]
[335366278,1724161861589,-151.20881187,0.0002047,2]
[335366279,1724161861602,-1000.0,0.00020478,2]
[335366280,1724161861611,-500.0,0.00020481,2]
[335366281,1724161861620,-321.60592,0.000205,9]
[335366282,1724161861630,-6524.32611269,0.000205,2]
[335366283,1724161861641,-2322.68684084,0.000205,2]
[335366284,1724161861661,-2322.68684084,0.000205,2]
[335366285,1724161861681,-2322.68684084,0.000205,2]
[335366286,1724161861695,-2322.68684084,0.000205,2]
[335366287,1724161861713,-1000.0,0.000205,2]
[335366288,1724161861729,-2000.0,0.00020521,2]
[335366289,1724161861746,-800.0,0.00020533,2]
[335366290,1724161861763,-500.0,0.00020547,2]
[335366291,1724161861783,-673.69,0.00020547,2]
[335366292,1724161861799,-1298.07,0.00020547,2]
[335366293,1724161861814,-701.65,0.00020547,2]
[335366294,1724161861831,-151.0,0.00020547,2]
[335366295,1724161861846,-158.336649,0.00020547,2]
[335366296,1724161861859,-158.336649,0.00020547,2]
[335366297,1724161861874,-1622.19,0.00020547,2]
[335366298,1724161861892,-866.07,0.00020547,2]
[335366299,1724161861910,-1117.96,0.00020547,2]
[335366300,1724161861928,-835.11,0.00020547,2]
[335366301,1724161861944,-500.0,0.00020547,2]
[335366302,1724161861955,-500.0,0.00020547,2]
[335366303,1724161861967,-674.76,0.00020547,2]
[335366304,1724161861981,-164.62635721,0.00020547,2]
[335366305,1724161861999,-1595.9,0.00020547,2]
[335366306,1724161862013,-500.0,0.00020547,2]
[335366307,1724161862028,-984.07,0.00020547,2]
[335366308,1724161862045,-1040.91,0.00020547,2]
[335366309,1724161862058,-500.0,0.00020547,2]
[335366310,1724161862071,-500.0,0.00020547,2]
[335366311,1724161862085,-570.39,0.00020547,2]
[335366312,1724161862102,-500.0,0.00020547,2]
[335366313,1724161862121,-2745.62,0.00020547,2]
[335366314,1724161862135,-500.0,0.00020547,2]
[335366315,1724161862146,-629.08,0.00020547,2]
[335366316,1724161862159,-500.0,0.00020547,2]
[335366317,1724161862172,-629.97,0.00020547,2]
[335366318,1724161862187,-4747.67,0.00020547,2]
[335366319,1724161862201,-1657.674267,0.00020548,2]
[335366320,1724161862216,-800.0,0.0002055,2]
[335366321,1724161862232,-1400.0,0.00020556,2]
[335366322,1724161862246,-555.45896171,0.0002056,2]
[335366325,1724161993519,153.49,0.0001989,120]
[335366329,1724162273734,-192.02486573,7.811e-05,2]
[335366330,1724162273760,-2166.4854483,7.911e-05,2]
[335366331,1724162273783,-1613.61724275,7.911e-05,2]
[335366332,1724162273805,-300.0,7.937e-05,2]
[335366333,1724162273827,-300.0,7.937e-05,2]
[335366334,1724162273850,-24900.0,7.938e-05,2]
[335366335,1724162273872,-898.81779354,7.954e-05,2]
[335366336,1724162273894,-42415.91084593,8.521e-05,2]
[335366337,1724162273919,-8845.25511796,8.521e-05,2]
[335366338,1724162273939,-3933.88868579,8.521e-05,2]
[335366339,1724162316541,-933.89722372,7.954e-05,2]
[335366340,1724162316563,-810.66321171,7.954e-05,2]
[335366341,1724162321486,154.76012181,8.019e-05,2]
[335366342,1724162328253,1766.63770101,7.911e-05,2]
[335366343,1724162335017,196.83090407,8.019e-05,2]
[335366344,1724162343579,1500.0,7.911e-05,2]
[335366345,1724162348334,190.09307092,8.019e-05,2]
[335366346,1724162350011,196.83090407,8.019e-05,2]
[335366347,1724162363643,160.46171883,8.019e-05,2]
[335366348,1724162373587,1500.0,7.911e-05,2]
[335366349,1724162389576,544.06785329,8.019e-05,2]
[335366350,1724162393690,608.80423946,8.019e-05,2]
[335366351,1724162394245,342.6945234,8.019e-05,2]
[335366352,1724162395060,220.73730923,8.019e-05,2]
[335366353,1724162403099,158.1221147,8.019e-05,2]
[335366354,1724162404734,180.81152876,8.019e-05,2]
[335366355,1724162408967,175.03957131,8.019e-05,2]
[335366356,1724162417687,309.47390132,8.019e-05,2]
[335366357,1724162422539,154.76012181,8.019e-05,2]
[335366358,1724162434329,156.87056893,8.019e-05,2]
[335366359,1724162438929,157.11235205,8.019e-05,2]
[335366360,1724162440701,569.6147727,8.019e-05,2]
[335366361,1724162445198,495.19490276,8.019e-05,2]
[335366362,1724162447708,495.19490276,8.019e-05,2]
[335366363,1724162447862,601.94985179,8.019e-05,2]
[335366364,1724162448228,665.53459983,7.954e-05,2]
[335366365,1724162451675,728.8710597,7.954e-05,2]
[335366366,1724162452545,289.4392329,8.019e-05,2]
[335366367,1724162467318,520.67910379,8.019e-05,2]
[335366368,1724162475944,154.76012181,8.019e-05,2]
[335366369,1724162483292,422.36012849,8.019e-05,2]
[335366371,1724162664149,24900.0,8.096e-05,2]
[335366373,1724162773930,810.66321171,7.954e-05,2]
[335366374,1724162796088,688.74575077,7.954e-05,2]
[335366376,1724162826091,688.74575077,7.954e-05,2]
[335366377,1724162860545,154.76012181,8.019e-05,2]
[335366378,1724162869889,190.14769102,8.019e-05,2]
[335366380,1724162875524,154.76012181,8.019e-05,2]
[335366381,1724162885121,1500.0,7.911e-05,2]
[335366382,1724162896152,160.42810684,8.019e-05,2]
[335366387,1724162901797,1766.63770101,7.911e-05,2]
[335366396,1724162973071,544.06785329,8.019e-05,2]
[335366397,1724162973262,180.81152876,8.019e-05,2]
[335366398,1724162974788,172.59639925,8.019e-05,2]
[335366401,1724162986963,161.332705,8.454e-05,2]
[335366402,1724162994967,155.53061185,8.019e-05,2]
[335366405,1724163003267,180.81152876,8.019e-05,2]
[335366406,1724163009085,154.76012181,8.019e-05,2]
[335366407,1724163028764,534.91146023,8.019e-05,2]
[335366408,1724163029875,156.87056893,8.019e-05,2]
[335366448,1724163032430,-161.332705,8.509e-05,2]
[335366450,1724163032441,-300.0,8.52e-05,2]
[335366452,1724163032452,-3080.24386472,8.521e-05,2]
[335366454,1724163032461,-520.67910379,8.521e-05,2]
[335366456,1724163032472,-728.8710597,8.521e-05,2]
[335366459,1724163032482,-601.94985179,8.521e-05,2]
[335366461,1724163032495,-422.36012849,8.521e-05,2]
[335366463,1724163032505,-157.11235205,8.532e-05,2]
[335366465,1724163032514,-569.6147727,8.532e-05,2]
[335366467,1724163032523,-665.53459983,8.532e-05,2]
[335366469,1724163032532,-4270.0190717,8.532e-05,2]
[335366471,1724163032542,-161.332705,8.565e-05,2]
[335366473,1724163032552,-161.332705,8.62e-05,2]
[335366475,1724163032562,-161.332705,8.675e-05,2]
[335366477,1724163032573,-161.332705,8.73e-05,2]
[335366479,1724163032584,-495.19490276,8.761e-05,2]
[335366481,1724163032593,-161.332705,8.785e-05,2]
[335366484,1724163032605,-930.88765948,8.793e-05,2]
[335366486,1724163032615,-161.332705,8.84e-05,2]
[335366488,1724163032626,-412.5965368,8.861e-05,2]
[335366490,1724163032638,-161.332705,8.895e-05,2]
[335366492,1724163032649,-420.0,9.372e-05,2]
[335366494,1724163032659,-154.76012181,9.429e-05,2]
[335366496,1724163032670,-1765.67532584,9.524e-05,2]
[335366498,1724163032680,-6057.37364109,9.589e-05,2]
[335366500,1724163032690,-154.76012181,0.0001,2]
[335366503,1724163032699,-413.70707529,0.0001,2]
[335366505,1724163032710,-817.60790766,0.0001,2]
[335366507,1724163032720,-678.23888369,0.0001008,2]
[335366585,1724163038985,-569.6147727,8.521e-05,2]
[335366586,1724163038994,-1500.0,8.883e-05,2]
[335366587,1724163039004,-154.76012181,8.883e-05,2]
[335366588,1724163039014,-217.69078295,0.0001008,2]
[335366589,1724163039022,-20797.12874944,0.00010081,2]
[335366590,1724163039032,-544.06785329,0.00010247,2]
[335366591,1724163039041,-186.51692237,0.0001026,2]
[335366592,1724163039051,-587.0,0.00010309,2]
[335366593,1724163039059,-213.11844268,0.00010958,2]
[335366594,1724163039068,-223.0,0.0001134,2]
[335366595,1724163039077,-404.47284307,0.00011894,2]
[335366596,1724163039086,-55478.02051668,0.0001212,2]
[335366597,1724163039095,-42252.6826141,0.00012346,2]
[335366598,1724163039105,-2143.02877073,0.00012516,2]
[335366599,1724163039114,-2128.24653365,0.00012779,2]
[335366600,1724163039123,-42415.91084593,0.00012779,2]
[335366601,1724163039133,-2712.87069354,0.00012779,2]
[335366602,1724163039142,-154.76012181,0.00012886,2]
[335366603,1724163039151,-811.47145884,0.00012971,2]
[335366604,1724163039160,-320.30409158,0.00012971,2]
[335366605,1724163039169,-42252.6826141,0.00012979,2]
[335366606,1724163039179,-493.36312925,0.00012985,2]
[335366607,1724163039188,-154.76012181,0.00012985,2]
[335366608,1724163039197,-188.81626543,0.00012989,2]
[335366609,1724163039206,-8845.25511796,0.00012989,2]
[335366610,1724163039216,-1613.61724275,0.00012989,2]
[335366611,1724163039225,-521.35824671,0.00012999,2]
[335366612,1724163039235,-862.53940611,0.00013,2]
[335366613,1724163039244,-154.76012181,0.00013025,2]
[335366614,1724163039256,-301.56944091,0.00013025,2]
[335366615,1724163039265,-780.13119624,0.00013051,2]
[335366616,1724163039274,-303.91507343,0.00013051,2]
[335366617,1724163039284,-309.52024362,0.00013333,2]
[335366618,1724163039293,-2000.0,0.00013397,2]
[335366619,1724163039303,-898.81779354,0.00013477,2]
[335366620,1724163039313,-848.02831466,0.00013496,2]
[335366621,1724163039323,-223.54518659,0.00013596,2]
[335366622,1724163039333,-158.1221147,0.00013688,2]
[335366623,1724163039343,-3000.0,0.00013699,2]
[335366624,1724163039352,-828.837133,0.00013699,2]
[335366625,1724163039361,-194.83065114,0.00013699,2]
[335366626,1724163039371,-500.0,0.00013699,2]
[335366627,1724163039380,-500.0,0.00013699,2]
[335366628,1724163039390,-416.88654947,0.00013699,2]
[335366629,1724163039399,-211.0,0.00014,2]
[335366630,1724163039409,-641.25,0.00014247,2]
[335366631,1724163039419,-165.985468,0.00014247,2]
[335366632,1724163039428,-42252.6826141,0.0001521,2]
[335366633,1724163039438,-153.0,0.00015212,2]
[335366634,1724163039448,-153.0,0.00015212,2]
[335366635,1724163039458,-238.650031,0.0001589,2]
[335366636,1724163039467,-1000.0,0.00016,16]
[335366637,1724163039476,-5117.28593988,0.00016182,2]
[335366638,1724163039486,-150.112239,0.000162,2]
[335366639,1724163039495,-34764.3086769,0.00016328,2]
[335366640,1724163039506,-500.0,0.00016426,2]
[335366641,1724163039515,-501.71886419,0.00016426,2]
[335366642,1724163039524,-546.32425691,0.00016426,2]
[335366643,1724163039534,-500.0,0.00016426,2]
[335366644,1724163039543,-500.0,0.00016426,2]
[335366645,1724163039555,-500.0,0.00016426,2]
[335366646,1724163039568,-500.0,0.00016426,2]
[335366647,1724163039578,-500.0,0.00016426,2]
[335366648,1724163039587,-500.0,0.00016426,2]
[335366649,1724163039597,-20404.39743,0.00016427,2]
[335366650,1724163039606,-169010.730456,0.00016428,2]
[335366651,1724163039615,-500.0,0.00016438,2]
[335366652,1724163039625,-500.0,0.00016438,2]
[335366653,1724163039634,-500.0,0.00016438,2]
[335366654,1724163039644,-500.0,0.00016438,2]
[335366655,1724163039654,-500.0,0.00016438,2]
[335366656,1724163039663,-500.0,0.00016438,2]
[335366657,1724163039672,-500.0,0.00016438,2]
[335366658,1724163039681,-500.0,0.00016438,2]
[335366659,1724163039691,-500.0,0.00016438,2]
[335366660,1724163039700,-573.51904403,0.00016438,2]
[335366661,1724163039883,-500.0,0.00016438,2]
[335366662,1724163039893,-500.0,0.00016438,2]
[335366663,1724163039904,-500.0,0.00016438,2]
[335366664,1724163039914,-500.0,0.00016438,2]
[335366665,1724163039924,-500.0,0.00016438,2]
[335366666,1724163039934,-500.0,0.00016438,2]
[335366667,1724163039943,-500.0,0.00016438,2]
[335366668,1724163039953,-500.0,0.00016438,2]
[335366669,1724163039963,-500.0,0.00016438,2]
[335366670,1724163039973,-500.0,0.00016438,2]
[335366671,1724163039983,-500.0,0.00016438,2]
[335366673,1724163039993,-155.93219572,0.00016438,2]
[335366675,1724163040007,-396.90635721,0.00016438,2]
[335366677,1724163040016,-500.0,0.00016438,2]
[335366678,1724163040036,-500.85401284,0.00016438,2]
[335366679,1724163040046,-500.0,0.00016438,2]
[335366680,1724163040055,-461.08774715,0.00016438,2]
[335366681,1724163040065,-252.49527329,0.00016438,2]
[335366682,1724163040075,-500.0,0.00016438,2]
[335366683,1724163040084,-500.0,0.00016438,2]
[335366684,1724163040093,-506.23259312,0.00016438,2]
[335366685,1724163040103,-500.0,0.00016438,2]
[335366686,1724163040113,-500.0,0.00016438,2]
[335366687,1724163040123,-328.20491338,0.00016438,2]
[335366688,1724163040132,-502.13502828,0.00016438,2]
[335366689,1724163040142,-500.0,0.00016438,2]
[335366692,1724163040152,-500.54268529,0.00016438,2]
[335366696,1724163040161,-500.0,0.00016438,2]
[335366698,1724163040170,-502.38509024,0.00016438,2]
[335366700,1724163040180,-500.5986862,0.00016438,2]
[335366702,1724163040189,-500.0,0.00016438,2]
[335366704,1724163040198,-513.15007194,0.00016438,2]
[335366705,1724163040207,-500.0,0.00016438,2]
[335366706,1724163040217,-500.0,0.00016438,2]
[335366707,1724163040226,-512.00156767,0.00016438,2]
[335366708,1724163040235,-500.0,0.00016438,2]
[335366709,1724163040244,-500.0,0.00016438,2]
[335366710,1724163040260,-500.0,0.00016438,2]
[335366711,1724163040269,-502.38568884,0.00016438,2]
[335366712,1724163040279,-531.08991792,0.00016438,2]
[335366713,1724163040288,-500.0,0.00016438,2]
[335366714,1724163040297,-500.0,0.00016438,2]
[335366715,1724163040307,-500.0,0.00016438,2]
[335366716,1724163040316,-500.0,0.00016438,2]
[335366717,1724163040325,-500.0,0.00016438,2]
[335366718,1724163040335,-500.0,0.00016438,2]
[335366719,1724163040344,-500.0,0.00016438,2]
[335366720,1724163040353,-500.0,0.00016438,2]
[335366721,1724163040362,-501.60259315,0.00016438,2]
[335366722,1724163040372,-500.11931272,0.00016438,2]
[335366723,1724163040381,-501.39772472,0.00016438,2]
[335366724,1724163040390,-500.0,0.00016438,2]
[335366725,1724163040399,-505.01381328,0.00016438,2]
[335366726,1724163040408,-503.82597074,0.00016438,2]
[335366727,1724163040419,-507.01989121,0.00016438,2]
[335366728,1724163040429,-229.05070244,0.00016438,2]
[335366729,1724163040439,-500.0,0.00016438,2]
[335366730,1724163040449,-500.0,0.00016438,2]
[335366731,1724163040460,-507.46312568,0.00016438,2]
[335366732,1724163040471,-502.79927189,0.00016438,2]
[335366733,1724163040481,-500.0,0.00016438,2]
[335366735,1724163040491,-500.0,0.00016438,2]
[335366736,1724163040504,-500.0,0.00016438,2]
[335366737,1724163040513,-500.0,0.00016438,2]
[335366738,1724163040523,-500.0,0.00016438,2]
[335366739,1724163040534,-500.0,0.00016438,2]
[335366740,1724163040543,-500.0,0.00016438,2]
[335366741,1724163040552,-501.13588741,0.00016438,2]
[335366742,1724163040562,-501.50501301,0.00016438,2]
[335366743,1724163040571,-500.0,0.00016438,2]
[335366744,1724163040580,-504.17105781,0.00016438,2]
[335366745,1724163040591,-500.0,0.00016438,2]
[335366746,1724163040602,-500.0,0.00016438,2]
[335366747,1724163040612,-500.0,0.00016438,2]
[335366748,1724163040623,-500.0,0.00016438,2]
[335366749,1724163040633,-500.0,0.00016438,2]
[335366750,1724163040644,-500.0,0.00016438,2]
[335366751,1724163040654,-500.0,0.00016438,2]
[335366752,1724163040666,-500.0,0.00016438,2]
[335366753,1724163040676,-500.0,0.00016438,2]
[335366754,1724163040688,-500.0,0.00016438,2]
[335366755,1724163040699,-500.0,0.00016438,2]
[335366756,1724163040709,-553.71,0.00016438,2]
[335366757,1724163040720,-501.18075418,0.00016438,2]
[335366758,1724163040731,-500.57930303,0.00016438,2]
[335366759,1724163040742,-500.0,0.00016438,2]
[335366760,1724163040755,-500.0,0.00016438,2]
[335366761,1724163040766,-500.0,0.00016438,2]
[335366762,1724163040776,-500.0,0.00016438,2]
[335366763,1724163040787,-501.53558859,0.00016438,2]
[335366764,1724163040798,-500.0,0.00016438,2]
[335366765,1724163040809,-500.0,0.00016438,2]
[335366766,1724163040820,-500.0,0.00016438,2]
[335366767,1724163040832,-500.0,0.00016438,2]
[335366768,1724163040843,-501.15477062,0.00016438,2]
[335366769,1724163040854,-500.0,0.00016438,2]
[335366770,1724163040865,-500.0,0.00016438,2]
[335366771,1724163040875,-500.0,0.00016438,2]
[335366772,1724163040885,-500.0,0.00016438,2]
[335366773,1724163040895,-501.90928877,0.00016438,2]
[335366774,1724163040906,-500.0,0.00016438,2]
[335366775,1724163040916,-514.46023224,0.00016438,2]
[335366776,1724163040927,-500.0,0.00016438,2]
[335366777,1724163040937,-505.84789719,0.00016438,2]
[335366778,1724163040947,-510.9339362,0.00016438,2]
[335366779,1724163040958,-575.35760915,0.00016438,2]
[335366780,1724163040968,-500.0,0.00016438,2]
[335366781,1724163040978,-500.0,0.00016438,2]
[335366782,1724163040988,-500.0,0.00016438,2]
[335366783,1724163040998,-500.0,0.00016438,2]
[335366784,1724163041012,-500.0,0.00016438,2]
[335366785,1724163041022,-500.0,0.00016438,2]
[335366786,1724163041032,-500.0,0.00016438,2]
[335366787,1724163041041,-502.76661967,0.00016438,2]
[335366788,1724163041050,-500.0,0.00016438,2]
[335366789,1724163041061,-502.59095076,0.00016438,2]
[335366790,1724163041070,-704.33,0.00016438,2]
[335366791,1724163041080,-500.0,0.00016438,2]
[335366792,1724163041089,-500.0,0.00016438,2]
[335366793,1724163041099,-500.0,0.00016438,2]
[335366794,1724163041110,-505.48695279,0.00016438,2]
[335366795,1724163041120,-279.57087627,0.00016438,2]
[335366796,1724163041129,-500.0,0.00016438,2]
[335366797,1724163041139,-500.0,0.00016438,2]
[335366798,1724163041149,-500.0,0.00016438,2]
[335366799,1724163041160,-500.0,0.00016438,2]
[335366800,1724163041170,-523.27466402,0.00016438,2]
[335366801,1724163041181,-500.0,0.00016438,2]
[335366802,1724163041193,-500.0,0.00016438,2]
[335366803,1724163041204,-500.0,0.00016438,2]
[335366804,1724163041215,-500.1932811,0.00016438,2]
[335366805,1724163041227,-500.0,0.00016438,2]
[335366806,1724163041236,-500.0,0.00016438,2]
[335366807,1724163041246,-503.17705376,0.00016438,2]
[335366808,1724163041257,-153.02501592,0.00016438,2]
[335366809,1724163041268,-500.0,0.00016438,2]
[335366810,1724163041278,-500.0,0.00016438,2]
[335366811,1724163041288,-512.41169414,0.00016438,2]
[335366812,1724163041297,-501.51002754,0.00016438,2]
[335366813,1724163041308,-500.0,0.00016438,2]
[335366814,1724163041318,-504.03964716,0.00016438,2]
[335366815,1724163041328,-500.0,0.00016438,2]
[335366816,1724163041338,-500.0,0.00016438,2]
[335366817,1724163041348,-500.0,0.00016438,2]
[335366818,1724163041357,-500.0,0.00016438,2]
[335366819,1724163041366,-500.0,0.00016438,2]
[335366820,1724163041376,-500.0,0.00016438,2]
[335366821,1724163041386,-500.0,0.00016438,2]
[335366822,1724163041395,-500.0,0.00016438,2]
[335366823,1724163041404,-500.0,0.00016438,2]
[335366824,1724163041415,-500.0,0.00016438,2]
[335366825,1724163041424,-500.0,0.00016438,2]
[335366826,1724163041434,-500.0,0.00016438,2]
[335366827,1724163041443,-500.0,0.00016438,2]
[335366828,1724163041452,-523.7757782,0.00016438,2]
[335366829,1724163041461,-500.0,0.00016438,2]
[335366830,1724163041471,-500.0,0.00016438,2]
[335366831,1724163041481,-500.0,0.00016438,2]
[335366832,1724163041491,-500.0,0.00016438,2]
[335366833,1724163041501,-500.0,0.00016438,2]
[335366834,1724163041510,-502.67082172,0.00016438,2]
[335366835,1724163041520,-500.0,0.00016438,2]
[335366836,1724163041529,-500.0,0.00016438,2]
[335366837,1724163041539,-500.0,0.00016438,2]
[335366838,1724163041548,-2000.0,0.00016438,2]
[335366839,1724163041558,-500.0,0.00016438,2]
[335366840,1724163041568,-150.0,0.00016438,2]
[335366841,1724163041578,-500.0,0.00016438,2]
[335366842,1724163041588,-508.78933289,0.00016438,2]
[335366843,1724163041597,-500.0,0.00016438,2]
[335366844,1724163041606,-500.0,0.00016438,2]
[335366845,1724163041617,-1357.4,0.00016438,2]
[335366846,1724163041626,-500.0,0.00016438,2]
[335366847,1724163041636,-500.0,0.00016438,2]
[335366848,1724163041645,-500.0,0.00016438,2]
[335366849,1724163041655,-500.0,0.00016438,2]
[335366850,1724163041664,-500.0,0.00016438,2]
[335366851,1724163041674,-500.0,0.00016438,2]
[335366852,1724163041683,-500.0,0.00016438,2]
[335366853,1724163041692,-500.0,0.00016438,2]
[335366854,1724163041701,-500.0,0.00016438,2]
[335366855,1724163041710,-500.0,0.00016438,2]
[335366856,1724163041719,-507.17362541,0.00016438,2]
[335366857,1724163041729,-200.0,0.00016438,2]
[335366858,1724163041739,-506.36308037,0.00016438,2]
[335366859,1724163041750,-500.0,0.00016438,2]
[335366860,1724163041760,-512.16275258,0.00016438,2]
[335366861,1724163041770,-500.0,0.00016438,2]
[335366862,1724163041779,-515.07755243,0.00016438,2]
[335366863,1724163041789,-500.0,0.00016438,2]
[335366864,1724163041799,-500.0,0.00016438,2]
[335366865,1724163041809,-512.22303326,0.00016438,2]
[335366866,1724163041821,-500.0,0.00016438,2]
[335366867,1724163041832,-667.48,0.00016438,2]
[335366868,1724163041844,-492.83835176,0.00016438,2]
[335366869,1724163041853,-500.0,0.00016438,2]
[335366870,1724163041863,-500.0,0.00016438,2]
[335366871,1724163041873,-500.0,0.00016438,2]
[335366872,1724163041883,-340.55325112,0.00016438,2]
[335366873,1724163041893,-500.0,0.00016438,2]
[335366874,1724163041902,-772.68,0.00016438,2]
[335366875,1724163041913,-500.0,0.00016438,2]
[335366876,1724163041922,-500.0,0.00016438,2]
[335366877,1724163041932,-500.41807037,0.00016438,2]
[335366878,1724163041942,-500.0,0.00016438,2]
[335366879,1724163041951,-500.0,0.00016438,2]
[335366880,1724163041961,-569.26187696,0.00016438,2]
[335366881,1724163041971,-500.0,0.00016438,2]
[335366882,1724163041981,-500.0,0.00016438,2]
[335366883,1724163041991,-500.0,0.00016438,2]
[335366884,1724163042002,-519.63962823,0.00016438,2]
[335366885,1724163042011,-500.0,0.00016438,2]
[335366886,1724163042022,-500.0,0.00016438,2]
[335366887,1724163042032,-500.0,0.00016438,2]
[335366888,1724163042042,-500.0,0.00016438,2]
[335366889,1724163042052,-500.0,0.00016438,2]
[335366890,1724163042064,-500.0,0.00016438,2]
[335366891,1724163042073,-502.70414768,0.00016438,2]
[335366892,1724163042083,-501.77593548,0.00016438,2]
[335366893,1724163042093,-500.0,0.00016438,2]
[335366894,1724163042105,-500.0,0.00016438,2]
[335366895,1724163042116,-500.0,0.00016438,2]
[335366896,1724163042125,-500.0,0.00016438,2]
[335366897,1724163042136,-500.0,0.00016438,2]
[335366898,1724163042147,-502.6666143,0.00016438,2]
[335366899,1724163042156,-511.70509182,0.00016438,2]
[335366900,1724163042166,-500.0,0.00016438,2]
[335366901,1724163042178,-516.5020625,0.00016438,2]
[335366902,1724163042188,-500.98672507,0.00016438,2]
[335366903,1724163042198,-503.56559324,0.00016438,2]
[335366904,1724163042207,-500.0,0.00016438,2]
[335366905,1724163042218,-546.63,0.00016438,2]
[335366906,1724163042228,-500.0,0.00016438,2]
[335366907,1724163042238,-500.0,0.00016438,2]
[335366908,1724163042248,-503.58228305,0.00016438,2]
[335366909,1724163042263,-500.9631803,0.00016438,2]
[335366910,1724163042275,-500.0,0.00016438,2]
[335366911,1724163042285,-500.0,0.00016438,2]
[335366912,1724163042295,-500.0,0.00016438,2]
[335366913,1724163042304,-500.0,0.00016438,2]
[335366914,1724163042313,-501.97462119,0.00016438,2]
[335366915,1724163042322,-500.0,0.00016438,2]
[335366916,1724163042331,-500.0,0.00016438,2]
[335366917,1724163042340,-500.0,0.00016438,2]
[335366918,1724163042349,-500.0,0.00016438,2]
[335366919,1724163042357,-500.0,0.00016438,2]
[335366920,1724163042366,-500.0,0.00016438,2]
[335366921,1724163042375,-500.0,0.00016438,2]
[335366922,1724163042384,-500.0,0.00016438,2]
[335366923,1724163042394,-500.0,0.00016438,2]